bitfinex/quotes_ETHUSD_20220101
["timestamp","ask_amount","ask_price","bid_price","bid_amount"]
[1641073355546,1.33347752,3763.3,3763.0,2.506397]
[1641073355852,1.33347752,3763.3,3763.1,0.00397897]
[1641073356046,1.33347752,3763.4,3763.1,0.00397897]
[1641073356246,1.33347752,3763.4,3763.0,2.81464335]
[1641073356447,1.33347752,3763.4,3763.1,0.00397897]
[1641073356647,1.33347752,3763.6,3763.1,0.00397897]
[1641073357449,1.33347752,3763.6,3763.2,0.26575]
[1641073357649,1.33347752,3763.6,3763.2,2.96132165]
[1641073357852,4.671,3763.9,3763.3,0.00284212]
[1641073359494,4.671,3763.9,3763.5,0.26574]
[1641073359793,4.671,3763.9,3763.6,0.00113685]
[1641073361002,4.671,3763.9,3763.6,0.26686685]
[1641073361399,4.671,3763.9,3763.6,0.93118685]
[1641073361597,4.671,3763.9,3763.7,2.62356038]
[1641073361797,4.671,3763.9,3763.7,2.92356038]
[1641073361997,4.671,3763.9,3763.8,2.50297296]
[1641073362297,4.671,3763.9,3763.7,2.818668]
[1641073362497,4.671,3763.9,3763.7,2.518668]
[1641073362898,4.671,3763.9,3763.6,1.23118685]
[1641073363748,4.671,3763.9,3763.6,0.93118685]
[1641073363946,4.671,3763.9,3763.6,0.00113685]
[1641073364345,4.671,3763.9,3763.3,0.00284212]
[1641073365549,4.671,3763.9,3763.3,2.50429291]
[1641073365947,4.671,3763.9,3763.4,0.0022737]
[1641073366349,1.28874362,3763.8,3763.4,0.0022737]
[1641073366783,1.28874362,3763.8,3763.3,0.00284212]
[1641073367392,1.28874362,3763.8,3763.3,2.53107551]
[1641073367793,4.671,3763.9,3763.4,0.0022737]
[1641073370535,5.81904168,3763.9,3763.4,0.0022737]
[1641073370936,5.81904168,3763.9,3763.3,0.00284212]
[1641073374694,4.671,3763.9,3763.3,0.00284212]
[1641073374893,4.671,3763.9,3763.3,0.93299212]
[1641073375094,4.671,3763.9,3763.4,2.5602092]
[1641073375295,4.671,3763.9,3763.4,2.5624829]
[1641073375495,4.671,3763.9,3763.5,0.00170527]
[1641073376297,4.671,3763.9,3763.6,0.26571]
[1641073376499,4.671,3763.9,3763.6,3.03931342]
[1641073376895,4.671,3763.9,3763.6,3.70365342]
[1641073378039,4.671,3763.9,3763.6,0.93005]
[1641073380147,4.671,3763.9,3763.6,0.26571]
[1641073382590,4.671,3763.9,3763.6,0.93005]
[1641073384194,4.671,3763.9,3763.7,2.48759272]
[1641073384394,4.671,3763.9,3763.6,0.93005]
[1641073388061,4.671,3763.9,3763.5,0.00170527]
[1641073388261,1.33694975,3763.8,3763.5,0.00170527]
[1641073389059,1.33694975,3763.8,3763.4,0.0022737]
[1641073397293,1.33694975,3763.8,3763.5,0.26576]
[1641073397592,1.33694975,3763.8,3763.6,0.00113685]
[1641073398995,1.33694975,3763.8,3763.4,0.0022737]
[1641073399801,1.33694975,3763.8,3763.5,0.26576]
[1641073400195,1.33694975,3763.8,3763.6,0.00113685]
[1641073400644,4.671,3763.9,3763.6,0.00113685]
[1641073401047,4.671,3763.9,3763.4,2.49342869]
[1641073401245,4.671,3763.9,3763.5,0.00170527]
[1641073402052,4.671,3763.9,3763.6,0.9301]
[1641073403060,4.671,3763.9,3763.6,0.26575]
[1641073403258,4.671,3763.9,3763.4,0.0022737]
[1641073403759,6.00447752,3763.9,3763.3,0.00284212]
[1641073404396,1.99793752,3763.6,3763.3,0.00284212]
[1641073405000,1.33347752,3763.7,3763.3,2.50427372]
[1641073405398,1.33347752,3763.7,3763.4,0.0022737]
[1641073405799,4.671,3763.9,3763.4,0.0022737]
[1641073405998,4.671,3763.9,3763.5,0.664307]
[1641073406196,4.671,3763.9,3763.6,3.57378192]
[1641073406396,4.671,3763.9,3763.6,3.21060877]
[1641073407403,4.671,3763.9,3763.7,0.66431]
[1641073410468,4.671,3763.9,3763.8,2.54686635]
[1641073412607,4.671,3763.9,3763.7,0.66431]
[1641073413006,4.671,3763.9,3763.8,2.49900821]
[1641073414015,4.671,3763.9,3763.8,2.49523584]
[1641073416248,4.671,3763.9,3763.7,0.66431]
[1641073416447,4.671,3763.9,3763.7,0.96431]
[1641073420806,4.671,3763.9,3763.8,2.49589073]
[1641073421905,4.671,3763.9,3763.8,5.64589073]
[1641073422305,4.671,3763.9,3763.8,2.49589073]
[1641073422706,1.33347752,3764.6,3763.8,12.09589073]
[1641073422910,1.33347752,3764.6,3764.1,0.26568]
[1641073423148,1.33347752,3764.6,3764.2,1.347067]
[1641073423149,0.00397896,3764.5,3764.2,1.347067]
[1641073423345,0.00397896,3764.5,3764.3,3.34493746]
[1641073423549,1.33347752,3764.6,3764.5,8.41398]
[1641073423844,6.9947,3765.7,3764.5,13.12724314]
[1641073423845,1.33347752,3765.4,3764.5,13.12724314]
[1641073424046,1.33347752,3765.4,3764.7,0.53117]
[1641073424245,1.33347752,3765.4,3764.8,3.46602897]
[1641073424450,1.33347752,3765.4,3765.2,0.66395]
[1641073424654,1.33347752,3765.4,3765.3,2.64934275]
[1641073424852,1.33347752,3765.8,3765.3,2.64934275]
[1641073425052,1.33347752,3765.8,3765.5,0.26559]
[1641073425252,1.33347752,3765.8,3765.5,2.79148863]
[1641073425453,1.33347752,3765.8,3765.5,3.45544383]
[1641073425656,1.33347752,3765.9,3765.5,3.75544383]
[1641073425850,1.33347752,3765.9,3765.5,3.07062167]
[1641073426051,1.34143545,3765.9,3765.5,2.77062167]
[1641073426450,1.34143545,3765.9,3765.5,3.43458167]
[1641073426652,1.34143545,3765.9,3765.5,3.50337849]
[1641073426903,0.00795793,3765.9,3765.5,3.50337849]
[1641073427402,1.34143545,3765.9,3765.5,3.50337849]
[1641073427600,1.34143545,3765.9,3765.5,4.16734019]
[1641073428303,1.34143545,3765.9,3765.5,1.5935117]
[1641073428502,1.34143545,3765.9,3765.5,4.11180016]
[1641073429707,1.34143545,3765.9,3765.5,1.5935117]
[1641073429908,1.33347752,3765.8,3765.5,3.62955]
[1641073430110,1.33347752,3765.8,3765.5,2.96559]
[1641073430409,1.33347752,3765.6,3765.5,2.96559]
[1641073430860,0.00625266,3765.6,3765.5,2.96559]
[1641073431460,0.00625266,3765.6,3765.5,2.7]
[1641073431758,1.33973018,3765.6,3765.5,2.7]
[1641073433463,0.00625266,3765.6,3765.5,2.7]
[1641073435010,0.00625266,3765.6,3765.5,8.00537208]
[1641073435408,0.00625266,3765.6,3765.5,8.38837208]
[1641073435608,1.770074,3766.2,3765.6,4.05]
[1641073435809,1.770074,3766.2,3765.9,0.6638095]
[1641073436012,1.770074,3766.2,3766.1,4.27191186]
[1641073436211,7.7345,3767.3,3766.1,7.29341261]
[1641073436409,0.00341054,3766.2,3766.1,7.29341261]
[1641073436608,0.00511581,3766.5,3766.1,7.29341261]
[1641073436808,0.00852635,3767.1,3766.3,0.66378]
[1641073437008,7.7345,3767.3,3766.3,3.99413826]
[1641073437009,0.00454739,3766.4,3766.3,3.99413826]
[1641073437209,0.00795793,3767.0,3766.3,3.99413826]
[1641073437409,0.00454739,3766.4,3766.3,2.79933826]
[1641073437610,0.0073895,3766.9,3766.3,2.79933826]
[1641073437809,0.00454739,3766.4,3766.3,2.79933826]
[1641073438046,0.00682108,3766.8,3766.5,0.66378]
[1641073438251,1.37113622,3767.2,3766.5,0.66378]
[1641073438448,1.37113622,3767.2,3766.3,4.12689826]
[1641073438653,0.00852635,3767.1,3766.3,4.12689826]
[1641073439049,0.00795793,3767.0,3766.6,0.66378]
[1641073439248,0.00903007,3767.0,3766.6,0.66378]
[1641073439453,0.0073895,3766.9,3766.7,0.26552]
[1641073439652,0.0073895,3766.9,3766.8,0.6637994]
[1641073439852,0.00107214,3767.0,3766.8,0.6637994]
[1641073451104,0.00107214,3767.0,3766.8,3.3637994]
[1641073451406,0.00107214,3767.0,3766.9,2.56523561]
[1641073451807,0.00903007,3767.0,3766.9,2.86523561]
[1641073452004,0.00903007,3767.0,3766.9,0.3]
[1641073461053,0.00903007,3767.0,3766.9,1.40658318]
[1641073461851,0.00903007,3767.0,3766.9,3.90209602]
[1641073462055,0.00903007,3767.0,3766.9,3.91359026]
[1641073465606,0.00903007,3767.0,3766.9,1.40658318]
[1641073465806,0.00903007,3767.0,3766.9,3.93125744]
[1641073466204,0.00903007,3767.0,3766.9,1.40658318]
[1641073466407,0.00903007,3767.0,3766.9,3.98313818]
[1641073466608,0.00903007,3767.0,3766.9,1.40658318]
[1641073467407,0.00903007,3767.0,3766.9,4.30658318]
[1641073468053,0.00903007,3767.0,3766.9,6.90654815]
[1641073468558,0.00903007,3767.0,3766.9,8.23391815]
[1641073469359,0.00903007,3767.0,3766.9,7.12733497]
[1641073469558,0.00903007,3767.0,3766.9,0.3]
[1641073469764,0.00903007,3767.0,3766.8,2.7]
[1641073470162,0.0073895,3766.9,3766.8,2.7]
[1641073473802,0.0073895,3766.9,3766.8,2.6]
[1641073482314,0.65162789,3767.2,3766.8,2.6]
[1641073482513,0.65162789,3767.2,3766.9,0.19913]
[1641073482714,0.00113685,3767.1,3767.0,0.66375]
[1641073484163,0.00113685,3767.1,3767.0,5.75400649]
[1641073488121,0.00113685,3767.1,3767.0,0.66375]
[1641073488619,0.00113685,3767.1,3767.0,3.18683768]
[1641073489018,0.00113685,3767.1,3767.0,2.00446026]
[1641073489518,0.00113685,3767.1,3767.0,0.66375]
[1641073490565,0.00213108,3767.1,3767.0,0.66375]
[1641073494913,0.00213108,3767.1,3766.8,2.6]
[1641073495116,0.66395,3767.0,3766.8,2.6]
[1641073495614,1.04695,3767.0,3766.8,2.6]
[1641073495818,1.66771017,3767.0,3766.8,2.6]
[1641073496314,1.32160735,3766.9,3766.8,2.6]
[1641073497115,1.66771017,3767.0,3766.8,1.57163853]
[1641073497314,9.933,3766.9,3766.8,1.57163853]
[1641073497514,9.633,3766.9,3766.8,1.57163853]
[1641073497712,8.633,3766.9,3766.8,1.57163853]
[1641073498155,9.95460735,3766.9,3766.8,1.57163853]
[1641073499157,10.25460735,3766.9,3766.8,1.57163853]
[1641073499360,10.95460735,3766.9,3766.8,1.57163853]
[1641073500362,2.70460735,3766.9,3766.8,1.57163853]
[1641073500566,25.70460735,3766.9,3766.8,1.57163853]
[1641073500970,24.383,3766.9,3766.8,1.57163853]
[1641073501168,24.3839766,3766.9,3766.8,1.57163853]
[1641073501366,27.50263791,3766.9,3766.8,1.57163853]
[1641073501567,28.80263791,3766.9,3766.8,1.57163853]
[1641073501808,29.46657791,3766.9,3766.8,1.57163853]
[1641073503411,30.13057411,3766.9,3766.8,1.57163853]
[1641073503615,30.13057411,3766.9,3766.8,1.26468626]
[1641073503813,9.9,3766.8,3766.2,0.05914405]
[1641073504014,9.6,3766.4,3765.2,1.34071026]
[1641073504211,0.383,3766.3,3765.2,1.34071026]
[1641073504415,17.4942,3766.3,3765.2,1.34071026]
[1641073504617,15.6304,3766.2,3765.0,1.34071026]
[1641073504818,1.04311104,3765.3,3765.0,1.34071026]
[1641073505016,0.66425,3765.2,3765.1,0.01023162]
[1641073505977,3.35,3765.2,3765.1,0.01023162]
[1641073506376,3.35,3765.2,3764.6,0.01307373]
[1641073506578,3.35,3765.2,3764.8,0.06037148]
[1641073506979,3.35,3765.2,3764.9,0.01136846]
[1641073508479,10.23776131,3765.8,3764.9,0.01136846]
[1641073508682,10.23776131,3765.8,3765.2,0.66413]
[1641073508882,3.11866131,3765.8,3765.2,0.66413]
[1641073509080,3.11866131,3765.8,3765.3,0.00909477]
[1641073509510,1.30736973,3765.8,3765.6,0.38363616]
[1641073509911,0.383,3766.0,3765.7,0.00682108]
[1641073511114,1.04715,3766.0,3765.7,0.00682108]
[1641073511318,1.04715,3766.0,3765.7,2.70682108]
[1641073511516,1.14756952,3765.9,3765.7,2.70682108]
[1641073511716,1.14756952,3765.9,3765.8,0.00625265]
[1641073511915,8.29756952,3765.9,3765.8,0.00125265]
[1641073513172,9.29756952,3765.9,3765.8,0.00125265]
[1641073514579,8.29756952,3765.9,3765.8,0.00125265]
[1641073514777,8.29756952,3765.9,3765.8,0.38488881]
[1641073517022,2.42706409,3766.0,3765.8,0.38488881]
[1641073517222,1.76291409,3766.0,3765.8,0.38488881]
[1641073518020,3.11866131,3766.2,3765.8,2.90441796]
[1641073518021,1.32875283,3766.2,3765.8,2.90441796]
[1641073518220,1.32875283,3766.2,3766.0,0.66387]
[1641073518723,1.32962953,3766.2,3766.0,0.66387]
[1641073518924,38.32962953,3766.2,3766.0,0.66387]
[1641073519324,37.0008767,3766.2,3766.0,0.66387]
[1641073519527,27.0,3766.1,3766.0,3.1749129]
[1641073519726,27.0,3766.1,3766.0,0.66387]
[1641073519926,27.0,3766.1,3766.0,4.52273669]
[1641073520125,27.0,3766.1,3766.0,4.90637285]
[1641073520568,27.0,3766.1,3766.0,6.20637285]
[1641073520768,0.0008767,3766.2,3766.0,6.20637285]
[1641073520972,0.0008767,3766.2,3766.1,10.01097968]
[1641073521367,0.00189774,3766.2,3766.1,10.01097968]
[1641073521968,0.00189774,3766.2,3766.1,2.86097968]
[1641073523669,0.00189774,3766.2,3766.1,6.71097968]
[1641073525424,0.00189774,3766.2,3766.1,7.09461584]
[1641073526424,0.02739774,3766.2,3766.1,7.09461584]
[1641073527225,5.38599572,3766.8,3766.6,0.66378]
[1641073527425,5.38599572,3766.8,3766.7,2.48320536]
[1641073527625,0.00284212,3766.7,3766.6,0.66378]
[1641073528065,0.00284212,3766.7,3766.6,3.13843925]
[1641073528470,0.00284212,3766.7,3766.6,3.80221925]
[1641073528670,6.15284212,3766.7,3766.6,3.13843925]
[1641073529070,6.15369195,3766.7,3766.6,3.13843925]
[1641073530676,0.00369195,3766.7,3766.6,3.52207541]
[1641073531578,0.00369195,3766.7,3766.6,6.87207541]
[1641073532008,0.00369195,3766.7,3766.6,7.17207541]
[1641073532417,0.00369195,3766.7,3766.6,9.87207541]
[1641073534016,0.00369195,3766.7,3766.6,6.52207541]
[1641073537278,0.00369195,3766.7,3766.6,7.87989224]
[1641073538477,0.00369195,3766.7,3766.6,5.10523299]
[1641073538880,0.00369195,3766.7,3766.6,3.74741616]
[1641073539078,0.00369195,3766.7,3766.6,3.08363616]
[1641073539913,0.00369195,3766.7,3766.6,5.53987384]
[1641073542216,0.00369195,3766.7,3766.6,3.08363616]
[1641073542518,3.65369195,3766.7,3766.6,4.44145299]
[1641073543161,3.65369195,3766.7,3766.6,3.08363616]
[1641073543361,0.00369195,3766.7,3766.6,3.08363616]
[1641073546167,0.6970149,3766.7,3766.6,3.08363616]
[1641073550326,0.033136,3766.7,3766.6,3.08363616]
[1641073550566,1.32875283,3766.8,3766.6,3.08363616]
[1641073550969,1.32875283,3767.0,3766.7,0.6638635]
[1641073551370,1.3304581,3767.0,3766.8,0.38363616]
[1641073551571,0.00170527,3767.0,3766.8,0.38363616]
[1641073554520,0.69497471,3767.0,3766.8,0.38363616]
[1641073556421,0.69497471,3767.0,3766.7,0.6638635]
[1641073556621,0.69497471,3767.0,3766.9,0.38363616]
[1641073559064,10.69497471,3767.0,3766.9,0.38363616]
[1641073561814,10.64497471,3767.0,3766.9,0.38363616]
[1641073567478,0.64497471,3767.0,3766.9,0.38363616]
[1641073567678,1.64497471,3767.0,3766.9,0.38363616]
[1641073567875,0.64497471,3767.0,3766.9,0.38363616]
[1641073568275,3.34497471,3767.0,3766.9,0.38363616]
[1641073568474,4.00888471,3767.0,3766.9,0.38363616]
[1641073568676,20.00888471,3767.0,3766.9,0.38363616]
[1641073569322,23.23339219,3767.0,3766.9,0.38363616]
[1641073571729,20.53339219,3767.0,3766.9,0.38363616]
[1641073572629,20.48339219,3767.0,3766.9,0.38363616]
[1641073573688,19.81948219,3767.0,3766.9,0.38363616]
[1641073573888,18.81948219,3767.0,3766.9,0.38363616]
[1641073574083,19.81948219,3767.0,3766.9,0.38363616]
[1641073574484,12.81948219,3767.0,3766.9,0.38363616]
[1641073575186,9.59497471,3767.0,3766.9,0.38363616]
[1641073575387,12.47132729,3767.0,3766.9,0.38363616]
[1641073576194,12.36746182,3767.0,3766.9,0.38363616]
[1641073576394,9.59497471,3767.0,3766.9,0.38363616]
[1641073578123,8.59497471,3767.0,3766.9,0.38363616]
[1641073580324,8.0,3767.0,3766.9,0.38363616]
[1641073581168,0.66384,3767.3,3766.9,0.38363616]
[1641073581369,5.81391,3767.0,3766.9,0.38363616]
[1641073581572,5.81391,3767.0,3766.6,2.7]
[1641073581768,1.0,3766.9,3766.6,2.7]
[1641073581970,4.1,3766.9,3766.8,0.38363616]
[1641073582368,4.1,3766.9,3766.8,0.38477301]
[1641073583571,1.0,3766.9,3766.8,0.38477301]
[1641073583773,1.66395,3766.9,3766.8,0.38477301]
[1641073583971,0.66395,3766.9,3766.8,0.38477301]
[1641073586027,3.31395,3766.9,3766.8,0.38477301]
[1641073586424,4.31395,3766.9,3766.8,0.38477301]
[1641073587026,7.17794622,3766.9,3766.8,0.38477301]
[1641073587227,20.17794622,3766.9,3766.8,0.38477301]
[1641073588069,17.41475,3766.9,3766.8,7.301e-05]
[1641073588273,17.80655,3766.9,3766.8,7.301e-05]
[1641073588478,9.6,3766.8,3766.6,2.47787301]
[1641073588772,10.75914,3766.7,3766.6,1.26468626]
[1641073588973,18.06074,3766.7,3766.6,1.26468626]
[1641073589169,19.06474,3766.7,3766.6,1.26582311]
[1641073589378,19.06314,3766.7,3766.6,1.26582311]
[1641073589675,24.09395469,3765.5,3765.1,3.11774672]
[1641073589875,24.09395469,3765.5,3765.1,0.6641501]
[1641073590075,24.09395469,3765.5,3765.2,0.00795792]
[1641073591478,24.75812469,3765.5,3765.2,0.00795792]
[1641073591924,24.09395469,3765.5,3765.3,0.6641177]
[1641073592324,24.09395469,3765.5,3765.4,0.00682108]
[1641073593124,24.09395469,3765.5,3765.0,0.00909477]
[1641073593325,24.09395469,3765.5,3765.2,0.66409]
[1641073593527,24.09395469,3765.5,3765.3,2.7]
[1641073593725,24.09395469,3765.5,3765.3,2.7073895]
[1641073593927,24.09395469,3765.5,3765.4,0.00682108]
[1641073603174,25.09395469,3765.5,3765.4,0.00682108]
[1641073603377,33.49635469,3765.5,3765.4,0.00682108]
[1641073603576,33.80035469,3765.5,3765.4,0.00682108]
[1641073603778,33.50755469,3765.5,3765.4,0.00682108]
[1641073603977,33.80915469,3765.5,3765.4,0.00682108]
[1641073604176,33.80435469,3765.5,3765.4,0.00682108]
[1641073604383,33.80675469,3765.5,3765.4,0.00682108]
[1641073604582,33.80275469,3765.5,3765.4,0.00682108]
[1641073604782,33.80355469,3765.5,3765.4,0.00682108]
[1641073604986,33.80195469,3765.5,3765.4,0.00682108]
[1641073605188,33.80435469,3765.5,3765.4,0.00682108]
[1641073605384,33.80035469,3765.5,3765.4,0.00682108]
[1641073605586,33.79955469,3765.5,3765.4,0.00682108]
[1641073606187,33.79875469,3765.5,3765.4,0.00682108]
[1641073606386,33.79795469,3765.5,3765.4,0.00682108]
[1641073606586,33.79875469,3765.5,3765.4,0.00682108]
[1641073606822,33.79955469,3765.5,3765.4,0.00682108]
[1641073607021,33.69395469,3765.5,3765.4,0.00682108]
[1641073607221,33.79475469,3765.5,3765.4,0.00682108]
[1641073607421,33.79955469,3765.5,3765.4,0.00682108]
[1641073608026,41.79635469,3765.5,3765.4,0.00682108]
[1641073608222,41.79555469,3765.5,3765.4,0.00682108]
[1641073608422,41.69395469,3765.5,3765.4,0.00682108]
[1641073608623,41.79475469,3765.5,3765.4,0.00682108]
[1641073609024,41.79795469,3765.5,3765.4,0.00682108]
[1641073609223,41.79475469,3765.5,3765.4,0.00682108]
[1641073609429,41.79795469,3765.5,3765.4,0.00682108]
[1641073609829,41.19555469,3765.5,3765.4,0.00682108]
[1641073610030,41.39395469,3765.5,3765.4,0.00682108]
[1641073610233,41.49555469,3765.5,3765.4,0.00682108]
[1641073610432,41.79395469,3765.5,3765.4,0.00682108]
[1641073610685,41.79715469,3765.5,3765.4,0.00682108]
[1641073610884,41.79555469,3765.5,3765.4,0.00682108]
[1641073611085,41.79635469,3765.5,3765.4,0.00682108]
[1641073611385,42.18415469,3765.5,3765.4,0.00682108]
[1641073611685,42.18175469,3765.5,3765.4,0.00682108]
[1641073611883,42.18095469,3765.5,3765.4,0.00682108]
[1641073612085,9.6,3765.4,3765.3,2.7]
[1641073612284,14.30329947,3765.4,3765.3,2.7]
[1641073612485,28.41209947,3765.4,3765.3,2.7]
[1641073612686,28.41369947,3765.4,3765.3,2.7]
[1641073612891,31.41829218,3765.4,3765.3,2.7]
[1641073613084,32.01189218,3765.4,3765.3,2.7]
[1641073613283,31.31109218,3765.4,3765.3,2.7]
[1641073613683,28.00329947,3765.4,3765.3,2.7]
[1641073614085,27.00329947,3765.4,3765.3,2.7]
[1641073614326,23.983,3765.4,3765.3,2.7]
[1641073615531,24.283,3765.4,3765.3,2.7]
[1641073615927,23.983,3765.4,3765.3,2.7]
[1641073616126,18.983,3765.4,3765.3,2.7]
[1641073617127,19.64729,3765.4,3765.3,2.7]
[1641073619276,24.64729,3765.4,3765.3,2.7]
[1641073622528,25.34092975,3765.4,3765.3,2.7]
[1641073623133,25.64092975,3765.4,3765.3,2.7]
[1641073623336,20.74092975,3765.4,3765.3,2.7]
[1641073623532,21.04332975,3765.4,3765.3,2.7]
[1641073623735,21.04172975,3765.4,3765.3,2.7]
[1641073624432,21.04012975,3765.4,3765.3,2.7]
[1641073624633,21.04092975,3765.4,3765.3,2.7]
[1641073624833,21.04172975,3765.4,3765.3,2.7]
[1641073625034,7.75,3765.3,3764.1,3.8759]
[1641073625237,1.32876,3764.8,3764.1,0.0628]
[1641073625435,1.2340838,3764.2,3763.5,0.0605]
[1641073625674,1.2340838,3764.2,3763.3,0.66437]
[1641073625883,1.2340838,3764.2,3763.8,0.00909477]
[1641073626177,1.2340838,3764.2,3763.5,0.01080004]
[1641073626779,0.66439,3764.0,3763.5,0.01080004]
[1641073628182,0.66439,3764.0,3763.6,0.66439]
[1641073628582,0.66439,3764.0,3763.7,0.0096632]
[1641073628782,1.8984438,3764.2,3763.7,0.0096632]
[1641073629729,1.8984438,3764.2,3763.7,0.6740332]
[1641073631430,2.8984438,3764.2,3763.7,0.6740332]
[1641073634176,2.8984438,3764.2,3763.7,3.3740332]
[1641073635983,2.8984438,3764.2,3763.7,2.7096632]
[1641073638035,1.66436,3764.2,3763.7,2.7096632]
[1641073638436,0.66436,3764.2,3763.7,2.7096632]
[1641073639036,0.66436,3764.2,3763.8,1.3286904]
[1641073639236,3.02989695,3764.6,3763.8,0.66436]
[1641073639237,0.66431,3764.4,3763.8,0.66436]
[1641073639440,1.0,3764.5,3763.9,0.00852635]
[1641073639839,8.0,3764.5,3763.9,0.00852635]
[1641073640439,8.0,3764.5,3763.9,0.67286635]
[1641073640680,0.66434,3764.3,3764.0,0.6643095]
[1641073640877,0.66434,3764.3,3764.0,0.67226743]
[1641073641077,0.66434,3764.3,3764.1,0.0073895]
[1641073641582,0.66434,3764.3,3764.0,0.00795793]
[1641073642681,0.66434,3764.3,3764.0,0.67230793]
[1641073643081,0.66434,3764.3,3764.1,0.0073895]
[1641073644731,0.66434,3764.3,3764.1,0.6717298]
[1641073645130,0.66434,3764.3,3764.2,0.00682108]
[1641073645333,4.81434,3764.3,3764.2,0.00682108]
[1641073645531,5.81434,3764.3,3764.2,0.00682108]
[1641073646734,5.81434,3764.3,3764.0,0.00795793]
[1641073648076,5.81434,3764.3,3763.9,0.00852635]
[1641073649387,5.81434,3764.3,3763.9,0.67291635]
[1641073649783,5.81434,3764.3,3764.0,0.00795793]
[1641073649984,4.81434,3764.3,3764.0,0.00795793]
[1641073651384,4.81434,3764.3,3764.0,0.67231793]
[1641073651823,4.81434,3764.3,3764.1,0.0073895]
[1641073652925,5.50812008,3764.3,3764.1,0.0073895]
[1641073658979,5.50812008,3764.3,3764.0,0.66436]
[1641073659182,5.50812008,3764.3,3763.1,1.13824415]
[1641073659183,9.61233423,3764.1,3763.1,1.13824415]
[1641073659445,0.66461,3763.6,3763.1,1.13824415]
[1641073659644,0.66461,3763.6,3763.2,0.00511581]
[1641073659645,0.683,3763.6,3763.2,0.00511581]
[1641073659846,0.4152,3763.5,3763.2,0.00511581]
[1641073660045,4.48111743,3763.5,3763.2,0.00511581]
[1641073660243,2.74932138,3763.4,3763.2,0.00511581]
[1641073660443,4.41159138,3763.4,3763.2,0.00511581]
[1641073660643,52.1104,3763.3,3763.2,0.00511581]
[1641073660844,52.408,3763.3,3763.2,0.00511581]
[1641073661044,53.4088,3763.3,3763.2,0.00511581]
[1641073661243,53.4072,3763.3,3763.2,0.00511581]
[1641073661644,53.4072,3763.3,3762.7,0.00795793]
[1641073661844,0.66467,3763.0,3762.9,0.05983047]
[1641073662047,1.66467,3763.0,3762.9,0.05983047]
[1641073662245,9.11467,3763.0,3762.9,0.06665155]
[1641073662447,51.11467,3763.0,3762.9,0.06665155]
[1641073662845,83.26255274,3763.0,3762.0,3.9919]
[1641073663082,0.66478,3762.4,3761.6,1.07826626]
[1641073663281,0.66476,3762.2,3762.1,0.00454739]
[1641073663681,1.80428418,3762.2,3761.7,0.00682109]
[1641073663880,1.80428418,3762.2,3761.3,0.00909478]
[1641073664282,0.66475,3761.6,3761.3,0.00909478]
[1641073665189,3.76485,3761.4,3761.3,0.00909478]
[1641073665985,3.76485,3761.4,3760.8,0.0119369]
[1641073666185,0.6649,3761.3,3760.5,0.01364217]
[1641073667635,1.80114976,3760.9,3760.3,0.01477901]
[1641073671882,3.79605626,3760.9,3760.1,0.01591586]
[1641073672081,3.79605626,3760.9,3759.7,3.21811586]
[1641073672082,6.0,3760.8,3759.7,3.21811586]
[1641073672281,0.61499,3760.5,3759.7,3.21811586]
[1641073672481,0.61499,3760.5,3759.8,0.00170527]
[1641073672681,0.61499,3760.5,3759.9,6.15]
[1641073673085,0.61499,3760.5,3759.9,6.45]
[1641073673381,0.61499,3760.5,3759.9,6.15]
[1641073675533,1.28002,3760.5,3759.9,6.15]
[1641073675737,0.66502,3760.2,3759.9,6.15]
[1641073678585,3.37298457,3760.2,3759.9,6.15]
[1641073678787,3.47298457,3760.2,3759.9,6.15]
[1641073678983,3.47218457,3760.2,3759.9,6.15]
[1641073679186,1.99559,3760.1,3759.9,6.15]
[1641073679389,1.99559,3760.1,3759.9,3.89490553]
[1641073679390,2.99559,3760.1,3759.9,3.89490553]
[1641073679590,0.66526,3759.7,3759.5,0.00341054]
[1641073679793,10.58330222,3759.6,3759.5,0.00341054]
[1641073679991,11.06630222,3759.6,3759.2,0.00511581]
[1641073680194,1.0,3759.5,3758.7,0.00795793]
[1641073680391,2.74506216,3759.4,3758.7,0.00795793]
[1641073680591,1.0,3759.3,3758.4,0.0096632]
[1641073680994,1.23788838,3759.4,3758.1,0.05983582]
[1641073680995,0.6653,3759.1,3758.2,0.01080005]
[1641073681845,0.6653,3759.1,3758.1,0.01136847]
[1641073684250,29.38220755,3759.1,3758.1,0.01136847]
[1641073684455,2.85,3759.0,3758.0,2.28846847]
[1641073684754,2.85511581,3759.0,3758.0,2.28846847]
[1641073684954,0.00454739,3758.9,3758.0,2.28846847]
[1641073685356,0.00397896,3758.8,3758.0,2.28846847]
[1641073685788,0.00341054,3758.7,3758.0,2.28846847]
[1641073686385,0.00284212,3758.6,3758.0,2.28846847]
[1641073686790,0.00227369,3758.5,3758.0,1.28846847]
[1641073687190,0.00170527,3758.4,3758.0,1.28846847]
[1641073687393,0.00170527,3758.4,3758.0,0.62326847]
[1641073687591,0.00113685,3758.3,3758.0,0.62326847]
[1641073687891,0.00113685,3758.3,3758.0,0.3619]
[1641073688091,0.00341054,3758.7,3757.8,0.6]
[1641073688291,0.00341054,3758.7,3757.8,0.3]
[1641073688490,0.00284212,3758.6,3757.9,0.00113685]
[1641073688894,0.00227369,3758.5,3757.9,0.00113685]
[1641073689349,0.66525,3758.8,3757.9,0.00113685]
[1641073689350,0.00170527,3758.4,3757.9,0.00113685]
[1641073689744,0.00113685,3758.3,3757.9,0.00113685]
[1641073690144,0.00341054,3758.7,3757.9,0.00113685]
[1641073690543,0.00284212,3758.6,3757.9,0.00113685]
[1641073690944,0.00227369,3758.5,3757.9,0.00113685]
[1641073691447,0.00170527,3758.4,3757.9,0.00113685]
[1641073691843,0.00113685,3758.3,3757.9,0.00113685]
[1641073692244,0.00341054,3758.7,3757.9,0.00113685]
[1641073692445,0.6653,3758.6,3757.8,0.00170527]
[1641073692647,0.66814212,3758.6,3757.8,0.00170527]
[1641073692849,1.13415368,3757.9,3757.8,0.00170527]
[1641073693885,3.83415368,3757.9,3757.8,0.00170527]
[1641073694290,4.49685368,3757.9,3757.8,0.00170527]
[1641073695093,5.82781368,3757.9,3757.8,0.00170527]
[1641073696832,9.67781368,3757.9,3757.8,0.00170527]
[1641073697832,5.82781368,3757.9,3757.8,0.00170527]
[1641073698233,9.58248217,3757.9,3757.8,0.00170527]
[1641073698435,9.58248217,3757.9,3757.0,6.15]
[1641073698436,9.6,3757.7,3757.0,1.74229466]